[Event "Turkish Youth Championships 2023"]
[Site "Samsun"]
[Date "2023.05.23"]
[Round "7.11"]
[White "Eroz, Enis"]
[Black "Gokturk, Murat Kutay"]
[Result "1-0"]
[WhiteElo "1830"]
[BlackElo "1591"]
[PlyCount "85"]
[EventDate "2023.05.19"]
[EventType "swiss"]
[EventCountry "TUR"]
[TimeControl "5400+30"]

1. e4 {[%emt 0:01:00]} c5 {[%emt 0:01:00]} 2. Nf3 {[%emt 0:00:30]} d6 {[%emt 0:00:30]} 3. d4 {[%emt 0:00:30]} cxd4 {[%emt 0:00:30]} 4. Nxd4 {[%emt 0:00:30]} Nf6 {[%emt 0:00:30]} 5. Nc3 {[%emt 0:00:30]} g6 {[%emt 0:00:00]} 6. Be2 {[%emt 0:01:30]} Bg7 {[%emt 0:00:00]} 7. Be3 {[%emt 0:04:30]} Nc6 {[%emt 0:06:30]} 8. O-O {[%emt 0:01:30]} Bd7 {[%emt 0:00:30]} 9. f4 {[%emt 0:02:30]} Rc8 {[%emt 0:10:30]} 10. Kh1 {[%emt 0:01:30]} h5 {[%emt 0:04:30]} 11. Bf3 {[%emt 0:04:30]} Ng4 {[%emt 0:01:30]} 12. Bg1 {[%emt 0:01:30]} a6 {[%emt 0:28:30]} 13. a4 {[%emt 0:11:30]} Na5 {[%emt 0:08:30]} 14. Qe1 {[%emt 0:22:30]} Rc4 {[%emt 0:07:30]} 15. Rd1 {[%emt 0:01:30]} Nc6 {[%emt 0:03:30]} 16. Nde2 {[%emt 0:01:30]} Nb4 {[%emt 0:02:30]} 17. b3 {[%emt 0:09:30]} Rc8 {[%emt 0:00:30]} 18. Rc1 {[%emt 0:01:30]} Bc6 {[%emt 0:17:05]} 19. Nd5 {[%emt 0:02:30]} Bxd5 {[%emt 0:00:58]} 20. Qxb4 {[%emt 0:00:00]} Bc6 {[%emt 0:00:00]} 21. Nd4 {[%emt 0:00:00]} Bh6 {[%emt 0:02:14]} 22. Rcd1 {[%emt 0:06:30]} a5 {[%emt 0:01:31]} 23. Nxc6 {[%emt 0:00:30]} bxc6 {[%emt 0:01:31]} 24. Qc3 {[%emt 0:01:30]} Nf6 {[%emt 0:00:44]} 25. e5 {[%emt 0:00:30]} Nd5 {[%emt 0:00:17]} 26. Qd4 {[%emt 0:00:30]} Bg7 {[%emt 0:01:21]} 27. Bxd5 {[%emt 0:00:30]} cxd5 {[%emt 0:00:54]} 28. Qxd5 {[%emt 0:00:30]} O-O {[%emt 0:00:36]} 29. exd6 {[%emt 0:00:30]} exd6 {[%emt 0:00:00]} 30. c4 {[%emt 0:00:00]} Rb8 {[%emt 0:00:28]} 31. Rf3 {[%emt 0:01:00]} Qh4 {[%emt 0:00:36]} 32. Qxa5 {[%emt 0:00:30]} Rfe8 {[%emt 0:00:37]} 33. Qg5 {[%emt 0:00:30]} Qxg5 {[%emt 0:00:51]} 34. fxg5 {[%emt 0:00:30]} Be5 {[%emt 0:00:00]} 35. a5 {[%emt 0:00:30]} Ra8 {[%emt 0:00:07]} 36. b4 {[%emt 0:00:30]} Reb8 {[%emt 0:00:01]} 37. Bb6 {[%emt 0:00:30]} Bg7 {[%emt 0:00:27]} 38. Rxd6 {[%emt 0:00:30]} Bf8 {[%emt 0:00:17]} 39. Rfd3 {[%emt 0:03:37]} Re8 {[%emt 0:01:38]} 40. Rd8 {[%emt 0:01:24]} Re1+ {[%emt 0:00:56]} 41. Bg1 {[%emt 0:00:07]} Rxd8 {[%emt 0:00:40]} 42. Rxd8 {[%emt 0:00:09]} Kg7 {[%emt 0:00:05]} 43. c5 {[%emt 0:01:52]} 1-0

[Event "Turkish Youth Championships 2023"]
[Site "Samsun"]
[Date "2023.05.23"]
[Round "7.12"]
[White "Topaloglu, Mehmet Utkan"]
[Black "Yildiz, Elif Zeren"]
[Result "1-0"]
[WhiteElo "1511"]
[BlackElo "1722"]
[PlyCount "79"]
[EventDate "2023.05.19"]
[EventType "swiss"]
[EventCountry "TUR"]
[TimeControl "5400+30"]
[BlackClock "0:12:31"]

1. e4 {[%emt 0:01:00]} c5 {[%emt 0:01:00]} 2. c3 {[%emt 0:00:30]} Nf6 {[%emt 0:00:30]} 3. e5 {[%emt 0:00:30]} Nd5 {[%emt 0:00:30]} 4. Nf3 {[%emt 0:00:30]} Nc6 {[%emt 0:00:30]} 5. d4 {[%emt 0:00:30]} cxd4 {[%emt 0:00:30]} 6. cxd4 {[%emt 0:00:30]} d6 {[%emt 0:00:30]} 7. Bc4 {[%emt 0:00:30]} dxe5 {[%emt 0:00:30]} 8. dxe5 {[%emt 0:00:30]} Ndb4 {[%emt 0:00:00]} 9. a3 {[%emt 0:03:30]} Qa5 {[%emt 0:13:00]} 10. O-O {[%emt 0:09:30]} Bf5 {[%emt 0:08:30]} 11. e6 {[%emt 0:13:30]} fxe6 {[%emt 0:00:30]} 12. Bd2 {[%emt 0:00:30]} Qc5 {[%emt 0:08:30]} 13. Qe2 {[%emt 0:07:30]} Nc2 {[%emt 0:05:30]} 14. b4 {[%emt 0:00:30]} Qd6 {[%emt 0:00:30]} 15. Ra2 {[%emt 0:03:30]} N2d4 {[%emt 0:05:30]} 16. Qe3 {[%emt 0:08:30]} a6 {[%emt 0:11:30]} 17. Bc3 {[%emt 0:07:30]} e5 {[%emt 0:06:30]} 18. Rd2 {[%emt 0:05:30]} Nxf3+ {[%emt 0:06:30]} 19. Qxf3 {[%emt 0:00:00]} Qg6 {[%emt 0:00:00]} 20. Rb2 {[%emt 0:04:00]} O-O-O {[%emt 0:04:00]} 21. b5 {[%emt 0:02:30]} axb5 {[%emt 0:00:30]} 22. Bxb5 {[%emt 0:04:30]} Bd3 {[%emt 0:06:30]} 23. Bxc6 {[%emt 0:07:47]} Qxc6 {[%emt 0:01:48]} 24. Rc1 {[%emt 0:01:57]} e4 {[%emt 0:02:02]} 25. Qg4+ {[%emt 0:01:50]} e6 {[%emt 0:02:06]} 26. Bd2 {[%emt 0:09:59]} Bc5 {[%emt 0:01:20]} 27. Be3 {[%emt 0:00:06]} b6 {[%emt 0:00:16]} 28. Nd2 {[%emt 0:02:12]} g6 {[%emt 0:02:27]} 29. Nb3 {[%emt 0:01:12]} Rd5 {[%emt 0:00:15]} 30. Nd4 {[%emt 0:00:17]} Rxd4 {[%emt 0:01:18]} 31. Bxd4 {[%emt 0:00:30]} Rd8 {[%emt 0:00:54]} 32. Bxc5 {[%emt 0:00:33]} bxc5 {[%emt 0:00:30]} 33. Qf4 {[%emt 0:00:00]} Qc7 {[%emt 0:00:18]} 34. Rxc5 {[%emt 0:03:25]} Qxc5 {[%emt 0:00:30]} 35. Rb8+ {[%emt 0:00:00]} Kd7 {[%emt 0:00:22]} 36. Qf7+ {[%emt 0:00:00]} Kc6 {[%emt 0:00:19]} 37. Qb7+ {[%emt 0:00:00]} Kd6 {[%emt 0:00:12]} 38. Rxd8+ {[%emt 0:00:12]} Ke5 {[%emt 0:00:05]} 39. Qb8+ {[%emt 0:00:54]} Kf6 {[%emt 0:01:23]} 40. Qf4+ {[%emt 0:00:08]} 1-0

[Event "Turkish Youth Championships 2023"]
[Site "Samsun"]
[Date "2023.05.23"]
[Round "7.13"]
[White "Bilgin, Ali Tugrul"]
[Black "Zerey, Demhat"]
[Result "0-1"]
[WhiteElo "1371"]
[BlackElo "1710"]
[PlyCount "152"]
[EventDate "2023.05.19"]
[EventType "swiss"]
[EventCountry "TUR"]
[TimeControl "5400+30"]
[WhiteClock "0:02:33"]

1. e4 {[%emt 0:01:00]} c5 {[%emt 0:01:00]} 2. Nf3 {[%emt 0:00:30]} g6 {[%emt 0:00:30]} 3. d4 {[%emt 0:00:00]} cxd4 {[%emt 0:03:30]} 4. Nxd4 {[%emt 0:00:00]} Bg7 {[%emt 0:00:30]} 5. Nc3 {[%emt 0:00:30]} Nc6 {[%emt 0:00:30]} 6. Be3 {[%emt 0:06:30]} Nf6 {[%emt 0:00:00]} 7. Be2 {[%emt 0:00:00]} O-O {[%emt 0:01:00]} 8. O-O {[%emt 0:00:00]} d5 {[%emt 0:03:30]} 9. exd5 {[%emt 0:14:30]} Nb4 {[%emt 0:10:30]} 10. d6 {[%emt 0:10:30]} Nfd5 {[%emt 0:08:30]} 11. a3 {[%emt 0:07:30]} Nxc3 {[%emt 0:00:30]} 12. bxc3 {[%emt 0:10:30]} Nd5 {[%emt 0:00:30]} 13. dxe7 {[%emt 0:02:30]} Qxe7 {[%emt 0:00:30]} 14. Bd2 {[%emt 0:00:30]} Rd8 {[%emt 0:12:30]} 15. Bd3 {[%emt 0:07:30]} Nxc3 {[%emt 0:05:30]} 16. Bxc3 {[%emt 0:00:00]} Qc5 {[%emt 0:02:30]} 17. Bb4 {[%emt 0:13:00]} Qxd4 {[%emt 0:00:30]} 18. Rb1 {[%emt 0:00:00]} Be6 {[%emt 0:00:30]} 19. Qf3 {[%emt 0:04:00]} Bd5 {[%emt 0:03:30]} 20. Qg3 {[%emt 0:00:30]} Rac8 {[%emt 0:08:30]} 21. Bd2 {[%emt 0:08:15]} b6 {[%emt 0:05:30]} 22. Rb4 {[%emt 0:02:54]} Qc5 {[%emt 0:01:30]} 23. Be3 {[%emt 0:03:38]} Qe7 {[%emt 0:03:30]} 24. Bd2 {[%emt 0:03:40]} Be5 {[%emt 0:09:13]} 25. Bf4 {[%emt 0:00:48]} Bc3 {[%emt 0:00:14]} 26. Rbb1 {[%emt 0:02:20]} Qxa3 {[%emt 0:01:39]} 27. Bb5 {[%emt 0:00:28]} a6 {[%emt 0:01:58]} 28. Bd3 {[%emt 0:01:22]} b5 {[%emt 0:00:43]} 29. Be5 {[%emt 0:00:17]} Bxe5 {[%emt 0:01:15]} 30. Qxe5 {[%emt 0:00:04]} Qc3 {[%emt 0:00:21]} 31. Qxc3 {[%emt 0:00:30]} Rxc3 {[%emt 0:00:30]} 32. Ra1 {[%emt 0:00:42]} Rd6 {[%emt 0:00:01]} 33. Rfc1 {[%emt 0:01:10]} Kg7 {[%emt 0:01:27]} 34. f3 {[%emt 0:00:28]} f5 {[%emt 0:01:07]} 35. Re1 {[%emt 0:00:37]} Kf6 {[%emt 0:00:47]} 36. Re8 {[%emt 0:00:11]} Bc4 {[%emt 0:01:26]} 37. f4 {[%emt 0:00:41]} Bxd3 {[%emt 0:00:15]} 38. cxd3 {[%emt 0:00:45]} Rcxd3 {[%emt 0:00:07]} 39. Kf2 {[%emt 0:00:16]} Rd2+ {[%emt 0:00:55]} 40. Kg3 {[%emt 0:00:56]} R6d3+ {[%emt 0:00:46]} 41. Kh4 {[%emt 0:00:05]} Rxg2 {[%emt 0:00:52]} 42. h3 {[%emt 0:00:09]} Rd6 {[%emt 0:06:47]} 43. Rxa6 {[%emt 0:00:59]} Rg4+ {[%emt 0:00:04]} 44. hxg4 {[%emt 0:00:20]} Rxa6 {[%emt 0:00:30]} 45. Rb8 {[%emt 0:00:00]} fxg4 {[%emt 0:00:48]} 46. Kxg4 {[%emt 0:00:45]} h5+ {[%emt 0:00:23]} 47. Kh4 {[%emt 0:01:14]} Ra4 {[%emt 0:01:47]} 48. Rxb5 {[%emt 0:00:51]} Rxf4+ {[%emt 0:00:30]} 49. Kg3 {[%emt 0:00:00]} Rf5 {[%emt 0:00:11]} 50. Rb6+ {[%emt 0:00:14]} Kg5 {[%emt 0:00:30]} 51. Rb3 {[%emt 0:00:00]} h4+ {[%emt 0:00:00]} 52. Kh3 {[%emt 0:00:18]} Kh5 {[%emt 0:00:00]} 53. Rb8 {[%emt 0:00:11]} Rf3+ {[%emt 0:00:12]} 54. Kg2 {[%emt 0:00:00]} Ra3 {[%emt 0:00:00]} 55. Rb2 {[%emt 0:00:30]} g5 {[%emt 0:00:02]} 56. Rc2 {[%emt 0:00:19]} h3+ {[%emt 0:01:02]} 57. Kh2 {[%emt 0:00:30]} Kh4 {[%emt 0:00:00]} 58. Rc8 {[%emt 0:00:02]} Ra2+ {[%emt 0:00:15]} 59. Kh1 {[%emt 0:00:30]} g4 {[%emt 0:00:17]} 60. Rc1 {[%emt 0:01:32]} Rf2 {[%emt 0:00:50]} 61. Rc4 {[%emt 0:02:03]} Kg3 {[%emt 0:00:40]} 62. Rc3+ {[%emt 0:00:52]} Rf3 {[%emt 0:00:30]} 63. Rc1 {[%emt 0:00:00]} Re3 {[%emt 0:00:00]} 64. Rf1 {[%emt 0:00:09]} Re4 {[%emt 0:01:14]} 65. Rg1+ {[%emt 0:00:51]} Kh4 {[%emt 0:00:31]} 66. Rd1 {[%emt 0:00:34]} g3 {[%emt 0:00:14]} 67. Rg1 {[%emt 0:00:41]} Kg4 {[%emt 0:00:47]} 68. Rc1 {[%emt 0:00:16]} Rd4 {[%emt 0:00:00]} 69. Rb1 {[%emt 0:00:20]} Rd3 {[%emt 0:00:13]} 70. Ra1 {[%emt 0:01:07]} Kf3 {[%emt 0:00:30]} 71. Rf1+ {[%emt 0:00:00]} Ke2 {[%emt 0:00:00]} 72. Kg1 {[%emt 0:01:10]} Rd1 {[%emt 0:00:25]} 73. Rxd1 {[%emt 0:00:30]} Kxd1 {[%emt 0:00:00]} 74. Kf1 {[%emt 0:00:00]} Kd2 {[%emt 0:00:18]} 75. Kg1 {[%emt 0:00:00]} Ke2 {[%emt 0:00:13]} 76. Kh1 {[%emt 0:00:00]} g2+ {[%emt 0:00:00]} 0-1

[Event "Turkish Youth Championships 2023"]
[Site "Samsun"]
[Date "2023.05.23"]
[Round "7.14"]
[White "Turker, Esat Tuna"]
[Black "Gani, Refik Efe"]
[Result "1/2-1/2"]
[WhiteElo "1713"]
[BlackElo "1526"]
[PlyCount "75"]
[EventDate "2023.05.19"]
[EventType "swiss"]
[EventCountry "TUR"]
[TimeControl "5400+30"]
[BlackClock "0:02:41"]

1. d4 {[%emt 0:01:00]} Nf6 {[%emt 0:01:00]} 2. Nf3 {[%emt 0:00:30]} d5 {[%emt 0:00:30]} 3. g3 {[%emt 0:00:30]} c5 {[%emt 0:00:30]} 4. Bg2 {[%emt 0:00:30]} cxd4 {[%emt 0:00:30]} 5. Nxd4 {[%emt 0:00:30]} e5 {[%emt 0:00:30]} 6. Nb3 {[%emt 0:00:30]} Be6 {[%emt 0:00:00]} 7. c4 {[%emt 0:06:30]} Nc6 {[%emt 0:08:00]} 8. cxd5 {[%emt 0:00:30]} Nxd5 {[%emt 0:02:30]} 9. O-O {[%emt 0:00:30]} Be7 {[%emt 0:00:30]} 10. e4 {[%emt 0:13:30]} Ndb4 {[%emt 0:07:30]} 11. Na3 {[%emt 0:25:30]} Qxd1 {[%emt 0:09:30]} 12. Rxd1 {[%emt 0:00:00]} Nxa2 {[%emt 0:01:30]} 13. Nd2 {[%emt 0:02:00]} Nd4 {[%emt 0:08:30]} 14. Kf1 {[%emt 0:11:30]} Bxa3 {[%emt 0:07:30]} 15. bxa3 {[%emt 0:01:30]} Nc3 {[%emt 0:01:30]} 16. Re1 {[%emt 0:00:30]} Nc2 {[%emt 0:00:30]} 17. Bb2 {[%emt 0:00:30]} Nxe1 {[%emt 0:01:30]} 18. Rxe1 {[%emt 0:02:30]} Rc8 {[%emt 0:02:30]} 19. Rc1 {[%emt 0:03:30]} Nb5 {[%emt 0:01:30]} 20. Rxc8+ {[%emt 0:00:30]} Bxc8 {[%emt 0:00:30]} 21. Bxe5 {[%emt 0:00:00]} f6 {[%emt 0:00:30]} 22. Bb2 {[%emt 0:00:00]} Kf7 {[%emt 0:02:30]} 23. Ke2 {[%emt 0:02:30]} Rd8 {[%emt 0:02:30]} 24. Ke3 {[%emt 0:00:30]} b6 {[%emt 0:01:30]} 25. Bf1 {[%emt 0:01:30]} Nd6 {[%emt 0:02:30]} 26. Bd3 {[%emt 0:01:30]} h6 {[%emt 0:04:30]} 27. f4 {[%emt 0:02:30]} Nb7 {[%emt 0:04:30]} 28. Nf3 {[%emt 0:05:35]} Be6 {[%emt 0:03:30]} 29. f5 {[%emt 0:02:09]} Ba2 {[%emt 0:02:30]} 30. e5 {[%emt 0:00:32]} Nc5 {[%emt 0:04:30]} 31. e6+ {[%emt 0:01:22]} Ke7 {[%emt 0:02:56]} 32. Be2 {[%emt 0:02:05]} Bb1 {[%emt 0:03:25]} 33. Nh4 {[%emt 0:01:12]} a6 {[%emt 0:02:19]} 34. Bd4 {[%emt 0:02:01]} Rd5 {[%emt 0:05:23]} 35. g4 {[%emt 0:04:53]} h5 {[%emt 0:01:25]} 36. h3 {[%emt 0:01:05]} hxg4 {[%emt 0:03:04]} 37. hxg4 {[%emt 0:00:03]} Ba2 {[%emt 0:01:41]} 38. Ng6+ {[%emt 0:01:42]} 1/2-1/2

[Event "Turkish Youth Championships 2023"]
[Site "Samsun"]
[Date "2023.05.23"]
[Round "7.15"]
[White "Ozgun, Yigit Deniz"]
[Black "Engin, Eyup Tarik"]
[Result "1-0"]
[WhiteElo "1747"]
[BlackElo "1513"]
[PlyCount "35"]
[EventDate "2023.05.19"]
[EventType "swiss"]
[EventCountry "TUR"]
[TimeControl "5400+30"]
[BlackClock "0:17:33"]

1. Nf3 {[%emt 0:01:00]} Nf6 {[%emt 0:01:00]} 2. b3 {[%emt 0:01:30]} e6 {[%emt 0:02:30]} 3. Bb2 {[%emt 0:00:30]} c5 {[%emt 0:03:30]} 4. c4 {[%emt 0:00:30]} Nc6 {[%emt 0:00:30]} 5. g3 {[%emt 0:00:00]} Be7 {[%emt 0:05:30]} 6. Bg2 {[%emt 0:00:00]} b6 {[%emt 0:02:30]} 7. O-O {[%emt 0:00:30]} Bb7 {[%emt 0:00:30]} 8. d4 {[%emt 0:01:30]} cxd4 {[%emt 0:05:30]} 9. Nxd4 {[%emt 0:00:00]} O-O {[%emt 0:06:30]} 10. Nc3 {[%emt 0:00:00]} d5 {[%emt 0:12:30]} 11. cxd5 {[%emt 0:00:30]} exd5 {[%emt 0:00:30]} 12. Nf5 {[%emt 0:04:30]} d4 {[%emt 0:21:30]} 13. Nb5 {[%emt 0:00:30]} Qd7 {[%emt 0:03:30]} 14. Nxe7+ {[%emt 0:00:30]} Qxe7 {[%emt 0:01:30]} 15. Ba3 {[%emt 0:01:30]} Qe5 {[%emt 0:04:30]} 16. Nd6 {[%emt 0:00:00]} Ba6 {[%emt 0:06:30]} 17. Bxc6 {[%emt 0:00:00]} Rad8 {[%emt 0:03:00]} 18. Nc4 {[%emt 0:00:30]} 1-0

[Event "Turkish Youth Championships 2023"]
[Site "Samsun"]
[Date "2023.05.23"]
[Round "7.16"]
[White "Atis, Hasan"]
[Black "Caliskan, Murat Osman"]
[Result "1-0"]
[WhiteElo "1890"]
[BlackElo "1538"]
[PlyCount "92"]
[EventDate "2023.05.19"]
[EventType "swiss"]
[EventCountry "TUR"]
[TimeControl "5400+30"]
[WhiteClock "0:32:00"]

1. e4 {[%emt 0:01:00]} e6 {[%emt 0:01:00]} 2. d4 {[%emt 0:00:30]} d5 {[%emt 0:00:00]} 3. Nd2 {[%emt 0:04:30]} dxe4 {[%emt 0:00:00]} 4. Nxe4 {[%emt 0:00:30]} Nd7 {[%emt 0:00:30]} 5. c3 {[%emt 0:00:30]} Ngf6 {[%emt 0:00:30]} 6. Bd3 {[%emt 0:00:30]} c5 {[%emt 0:00:30]} 7. Ne2 {[%emt 0:02:30]} Be7 {[%emt 0:02:30]} 8. O-O {[%emt 0:00:30]} O-O {[%emt 0:00:00]} 9. Qc2 {[%emt 0:00:30]} Nxe4 {[%emt 0:01:00]} 10. Bxe4 {[%emt 0:00:30]} Nf6 {[%emt 0:00:00]} 11. Bf3 {[%emt 0:00:30]} Qc7 {[%emt 0:01:00]} 12. Rd1 {[%emt 0:06:30]} cxd4 {[%emt 0:00:30]} 13. Nxd4 {[%emt 0:01:30]} Bd7 {[%emt 0:00:30]} 14. a4 {[%emt 0:00:30]} a6 {[%emt 0:01:30]} 15. a5 {[%emt 0:09:30]} Rac8 {[%emt 0:02:30]} 16. g3 {[%emt 0:05:30]} h6 {[%emt 0:01:30]} 17. Re1 {[%emt 0:01:30]} Bd6 {[%emt 0:02:30]} 18. Bg2 {[%emt 0:01:30]} Rfe8 {[%emt 0:02:30]} 19. Bd2 {[%emt 0:05:30]} Bc5 {[%emt 0:00:30]} 20. Nb3 {[%emt 0:05:30]} Ba7 {[%emt 0:00:30]} 21. Bf4 {[%emt 0:00:30]} e5 {[%emt 0:00:30]} 22. Be3 {[%emt 0:00:30]} Bxe3 {[%emt 0:00:00]} 23. Rxe3 {[%emt 0:00:30]} Bc6 {[%emt 0:00:00]} 24. Bxc6 {[%emt 0:01:30]} Qxc6 {[%emt 0:00:30]} 25. Rae1 {[%emt 0:00:00]} Qb5 {[%emt 0:05:30]} 26. Ra1 {[%emt 0:02:00]} Qc6 {[%emt 0:00:30]} 27. Nd2 {[%emt 0:00:00]} Rcd8 {[%emt 0:03:30]} 28. Re2 {[%emt 0:01:00]} Rd7 {[%emt 0:00:30]} 29. Ra4 {[%emt 0:03:30]} Red8 {[%emt 0:00:30]} 30. Rb4 {[%emt 0:00:30]} Qc5 {[%emt 0:03:30]} 31. Ne4 {[%emt 0:04:30]} Nxe4 {[%emt 0:03:30]} 32. Qxe4 {[%emt 0:00:30]} Qxa5 {[%emt 0:00:30]} 33. Rxb7 {[%emt 0:00:30]} Rxb7 {[%emt 0:00:30]} 34. Qxb7 {[%emt 0:00:30]} Rd1+ {[%emt 0:00:30]} 35. Kg2 {[%emt 0:00:30]} Qa1 {[%emt 0:00:30]} 36. Qc8+ {[%emt 0:00:30]} Kh7 {[%emt 0:00:30]} 37. Qf5+ {[%emt 0:00:30]} Kg8 {[%emt 0:00:30]} 38. Rxe5 {[%emt 0:00:30]} Rg1+ {[%emt 0:00:30]} 39. Kh3 {[%emt 0:00:30]} Qf1+ {[%emt 0:00:30]} 40. Kh4 {[%emt 0:06:30]} Qc4+ {[%emt 0:06:30]} 41. Re4 {[%emt 0:00:30]} Qc6 {[%emt 0:00:30]} 42. Re7 {[%emt 0:04:30]} Qc4+ {[%emt 0:01:30]} 43. f4 {[%emt 0:00:30]} g6 {[%emt 0:01:30]} 44. Re8+ {[%emt 0:01:30]} Kh7 {[%emt 0:00:00]} 45. Qe5 {[%emt 0:00:00]} g5+ {[%emt 0:01:00]} 46. Kh5 {[%emt 0:00:00]} Qe2+ {[%emt 0:00:30]} 1-0

[Event "Turkish Youth Championships 2023"]
[Site "Samsun"]
[Date "2023.05.23"]
[Round "7.17"]
[White "Gungor, Cihan Akif"]
[Black "Herdem, Talha"]
[Result "1-0"]
[WhiteElo "1771"]
[BlackElo "1417"]
[PlyCount "79"]
[EventDate "2023.05.19"]
[EventType "swiss"]
[EventCountry "TUR"]
[TimeControl "5400+30"]
[BlackClock "0:00:23"]

1. e4 {[%emt 0:01:00]} c5 {[%emt 0:01:00]} 2. c3 {[%emt 0:00:30]} Nf6 {[%emt 0:00:30]} 3. e5 {[%emt 0:00:30]} Nd5 {[%emt 0:00:30]} 4. d4 {[%emt 0:00:30]} cxd4 {[%emt 0:00:30]} 5. Nf3 {[%emt 0:00:30]} d6 {[%emt 0:00:30]} 6. cxd4 {[%emt 0:00:30]} e6 {[%emt 0:00:30]} 7. Bc4 {[%emt 0:00:30]} Be7 {[%emt 0:00:30]} 8. O-O {[%emt 0:00:30]} O-O {[%emt 0:00:30]} 9. Qe2 {[%emt 0:00:30]} dxe5 {[%emt 0:00:30]} 10. dxe5 {[%emt 0:00:00]} b6 {[%emt 0:00:00]} 11. Rd1 {[%emt 0:00:00]} Bb7 {[%emt 0:00:00]} 12. Bd3 {[%emt 0:01:30]} Nd7 {[%emt 0:01:30]} 13. Nc3 {[%emt 0:00:30]} Nxc3 {[%emt 0:02:30]} 14. bxc3 {[%emt 0:00:30]} Qc7 {[%emt 0:00:30]} 15. Bf4 {[%emt 0:00:30]} Rfd8 {[%emt 0:02:30]} 16. Rac1 {[%emt 0:03:30]} Nc5 {[%emt 0:12:30]} 17. Bc4 {[%emt 0:01:30]} Rac8 {[%emt 0:02:30]} 18. Rxd8+ {[%emt 0:05:30]} Bxd8 {[%emt 0:06:30]} 19. Nd4 {[%emt 0:11:30]} a6 {[%emt 0:02:30]} 20. Qe3 {[%emt 0:08:30]} b5 {[%emt 0:09:30]} 21. Be2 {[%emt 0:00:30]} Qe7 {[%emt 0:14:30]} 22. c4 {[%emt 0:08:30]} b4 {[%emt 0:02:30]} 23. Nb3 {[%emt 0:01:30]} Bb6 {[%emt 0:04:30]} 24. Rd1 {[%emt 0:02:30]} Na4 {[%emt 0:03:30]} 25. c5 {[%emt 0:17:30]} Nxc5 {[%emt 0:07:30]} 26. Rd6 {[%emt 0:00:30]} Qc7 {[%emt 0:01:30]} 27. h4 {[%emt 0:01:30]} Na4 {[%emt 0:15:16]} 28. Nd4 {[%emt 0:01:30]} Bc5 {[%emt 0:02:16]} 29. h5 {[%emt 0:00:00]} Bxd6 {[%emt 0:00:43]} 30. exd6 {[%emt 0:00:00]} Qd7 {[%emt 0:01:11]} 31. h6 {[%emt 0:00:00]} Nc3 {[%emt 0:00:47]} 32. Bd3 {[%emt 0:01:00]} Nd5 {[%emt 0:01:53]} 33. Qg3 {[%emt 0:00:00]} f5 {[%emt 0:00:27]} 34. Nxe6 {[%emt 0:00:00]} Nxf4 {[%emt 0:05:09]} 35. Nxf4 {[%emt 0:00:30]} g6 {[%emt 0:00:30]} 36. Nxg6 {[%emt 0:00:30]} hxg6 {[%emt 0:00:30]} 37. Qxg6+ {[%emt 0:00:30]} Kh8 {[%emt 0:00:30]} 38. Qf6+ {[%emt 0:00:30]} Kg8 {[%emt 0:00:30]} 39. Bxf5 {[%emt 0:00:30]} Qf7 {[%emt 0:00:30]} 40. h7+ {[%emt 0:00:30]} 1-0

[Event "Turkish Youth Championships 2023"]
[Site "Samsun"]
[Date "2023.05.23"]
[Round "7.18"]
[White "Anakok, Deniz"]
[Black "Binboga, Yaman"]
[Result "1/2-1/2"]
[WhiteElo "1448"]
[BlackElo "1653"]
[PlyCount "78"]
[EventDate "2023.05.19"]
[EventType "swiss"]
[EventCountry "TUR"]
[TimeControl "5400+30"]
[WhiteClock "0:10:47"]

1. e4 {[%emt 0:01:00]} c5 {[%emt 0:01:00]} 2. Nf3 {[%emt 0:00:30]} d6 {[%emt 0:00:30]} 3. Bb5+ {[%emt 0:00:30]} Nd7 {[%emt 0:00:30]} 4. Ba4 {[%emt 0:00:30]} Ngf6 {[%emt 0:00:30]} 5. O-O {[%emt 0:00:30]} a6 {[%emt 0:00:30]} 6. c4 {[%emt 0:00:30]} e6 {[%emt 0:00:30]} 7. d3 {[%emt 0:00:30]} Be7 {[%emt 0:00:00]} 8. Nbd2 {[%emt 0:00:00]} O-O {[%emt 0:00:00]} 9. a3 {[%emt 0:02:00]} Qc7 {[%emt 0:10:30]} 10. Re1 {[%emt 0:06:30]} b6 {[%emt 0:00:30]} 11. Bc2 {[%emt 0:03:30]} Bb7 {[%emt 0:03:30]} 12. Nf1 {[%emt 0:03:30]} Rfe8 {[%emt 0:01:30]} 13. Ng3 {[%emt 0:01:30]} Nf8 {[%emt 0:03:30]} 14. h4 {[%emt 0:17:30]} h5 {[%emt 0:07:30]} 15. Ng5 {[%emt 0:13:30]} g6 {[%emt 0:00:30]} 16. Bf4 {[%emt 0:04:30]} N8h7 {[%emt 0:02:30]} 17. Ba4 {[%emt 0:06:30]} Rf8 {[%emt 0:02:30]} 18. Nf1 {[%emt 0:09:30]} Nxg5 {[%emt 0:00:30]} 19. Bxg5 {[%emt 0:00:30]} Ng4 {[%emt 0:00:30]} 20. Qd2 {[%emt 0:02:30]} Bxg5 {[%emt 0:01:30]} 21. Qxg5 {[%emt 0:00:30]} Qd8 {[%emt 0:00:30]} 22. Qxd8 {[%emt 0:01:30]} Rfxd8 {[%emt 0:00:30]} 23. Ne3 {[%emt 0:03:30]} Ne5 {[%emt 0:00:30]} 24. Rad1 {[%emt 0:01:30]} Bc6 {[%emt 0:00:30]} 25. Bc2 {[%emt 0:00:30]} Bd7 {[%emt 0:00:30]} 26. Bb1 {[%emt 0:04:35]} f5 {[%emt 0:09:30]} 27. exf5 {[%emt 0:02:47]} gxf5 {[%emt 0:00:30]} 28. d4 {[%emt 0:01:06]} Nc6 {[%emt 0:00:30]} 29. d5 {[%emt 0:00:16]} Nd4 {[%emt 0:00:30]} 30. dxe6 {[%emt 0:00:56]} Bxe6 {[%emt 0:00:00]} 31. Nc2 {[%emt 0:00:10]} Nxc2 {[%emt 0:01:00]} 32. Bxc2 {[%emt 0:00:02]} Kf7 {[%emt 0:00:30]} 33. Rd2 {[%emt 0:01:53]} Bxc4 {[%emt 0:03:30]} 34. Bxf5 {[%emt 0:01:58]} Kf6 {[%emt 0:00:30]} 35. Bh3 {[%emt 0:00:30]} Bf7 {[%emt 0:00:30]} 36. Re3 {[%emt 0:00:30]} Bc4 {[%emt 0:00:30]} 37. Re1 {[%emt 0:00:30]} Bf7 {[%emt 0:00:30]} 38. Re3 {[%emt 0:00:30]} d5 {[%emt 0:00:30]} 39. Rf3+ {[%emt 0:00:30]} Kg6 {[%emt 0:00:30]} 1/2-1/2